bitfinex/quotes_SOLUSD_20241020
["timestamp","ask_amount","ask_price","bid_price","bid_amount"]
[1729456846012,6.1827,161.75,161.6,0.1]
[1729456846216,6.1827,161.75,161.59,23.876884]
[1729456846217,6.45252914,161.73,161.59,23.876884]
[1729456846630,6.45252914,161.73,161.59,23.776884]
[1729456846821,6.45252914,161.73,161.59,23.876884]
[1729456847133,12.63602914,161.73,161.59,23.776884]
[1729456847323,12.63562914,161.73,161.59,23.776884]
[1729456848342,6.45252914,161.73,161.59,23.776884]
[1729456848547,6.45252914,161.73,161.6,0.1]
[1729456849042,6.45252914,161.73,161.62,0.1]
[1729456849414,6.45252914,161.73,161.61,0.1]
[1729456849713,6.45252914,161.73,161.62,0.1]
[1729456850216,6.45252914,161.73,161.62,0.2]
[1729456850624,6.45252914,161.73,161.63,0.1]
[1729456850820,6.45252914,161.73,161.62,23.976884]
[1729456851432,6.45252914,161.73,161.63,0.1]
[1729456851638,0.629156,161.82,161.81,0.1]
[1729456851841,50.0,161.88,161.86,0.1]
[1729456852051,50.0,161.88,161.87,0.1]
[1729456852425,50.0,161.88,161.87,16.78014459]
[1729456852640,43.788,161.88,161.87,0.1]
[1729456852818,8.54152037,161.88,161.85,9.11729746]
[1729456853133,8.54152037,161.88,161.87,0.1]
[1729456853134,7.54152037,161.88,161.87,0.1]
[1729456853738,7.54152037,161.88,161.87,0.2]
[1729456853924,7.54152037,161.88,161.87,46.93281481]
[1729456854138,111.5,162.0,161.93,0.1]
[1729456854513,111.5,162.0,161.94,0.1]
[1729456855217,111.5,162.0,161.95,0.1]
[1729456855715,111.5,162.0,161.96,0.1]
[1729456855916,111.5,162.0,161.97,0.1]
[1729456856140,111.5,162.0,161.91,23.776884]
[1729456856141,111.5,162.0,161.96,23.876884]
[1729456856450,111.5,162.0,161.97,7.68323148]
[1729456856616,111.5,162.0,161.97,7.78323148]
[1729456856816,111.5,162.0,161.97,17.12119561]
[1729456857017,93.3586,162.0,161.99,0.1]
[1729456857241,93.3586,162.0,161.99,9.43796413]
[1729456857433,93.3586,162.0,161.99,40.90819072]
[1729456857740,71.7576,162.0,161.99,59.50819072]
[1729456857943,71.7576,162.0,161.99,40.90819072]
[1729456858149,71.7576,162.0,161.99,31.57022659]
[1729456858457,71.7576,162.0,161.99,36.89868036]
[1729456858643,5.782,162.0,161.99,48.83945915]
[1729456858946,5.782,162.0,161.99,39.4339185]
[1729456859246,5.782,162.0,161.99,40.6672367]
[1729456859629,5.782,162.0,161.99,31.47022659]
[1729456859827,5.782,162.0,161.93,0.1]
[1729456860034,5.782,162.0,161.9,0.1]
[1729456860236,20.0,161.99,161.89,7.18102474]
[1729456860460,20.0,161.99,161.85,0.1]
[1729456860461,0.1,161.98,161.8,0.1]
[1729456860633,20.0,161.95,161.8,0.1]
[1729456860977,20.0,161.95,161.8,7.18102474]
[1729456861238,20.0,161.96,161.78,0.1]
[1729456861439,20.0,161.96,161.79,7.18102474]
[1729456861943,5.782,162.0,161.86,0.2]
[1729456862240,5.782,162.0,161.89,0.1]
[1729456862544,5.782,162.0,161.9,7.38102474]
[1729456862736,5.782,162.0,161.91,1.23422994]
[1729456862929,5.782,162.0,161.92,7.18102474]
[1729456863132,5.782,162.0,161.93,23.776884]
[1729456863535,5.782,162.0,161.95,23.776884]
[1729456863844,3.782,162.0,161.95,23.776884]
[1729456864146,3.782,162.0,161.96,23.776884]
[1729456864330,3.782,162.0,161.99,0.1]
[1729456864522,0.1,162.12,161.99,8.51462863]
[1729456864758,6.629556,162.14,161.99,8.51462863]
[1729456864759,0.1,162.13,161.99,10.01195948]
[1729456865072,0.729156,162.14,162.0,16.6420475]
[1729456865373,0.729156,162.14,162.01,17.87519099]
[1729456865574,0.629156,162.14,162.02,16.6420475]
[1729456865867,0.629156,162.14,162.03,1.23300798]
[1729456866078,0.629156,162.14,162.04,33.3701982]
[1729456866242,6.30846018,162.35,162.07,0.4]
[1729456866440,0.1,162.56,162.31,0.1]
[1729456866441,2.71433467,162.53,162.31,0.1]
[1729456866752,0.1,162.53,162.36,0.1]
[1729456866944,6.1004,162.55,162.38,0.1]
[1729456867144,6.1529,162.53,162.38,0.1]
[1729456867352,0.1,162.51,162.33,0.1]
[1729456867555,8.83753249,162.52,162.34,0.1]
[1729456867556,14.99153249,162.5,162.34,0.1]
[1729456867756,14.99153249,162.5,162.32,0.1]
[1729456867757,6.0004,162.55,162.41,0.1]
[1729456868373,6.0004,162.55,162.34,0.1]
[1729456868374,6.154,162.5,162.34,0.1]
[1729456868580,0.1,162.54,162.34,0.1]
[1729456868748,6.154,162.5,162.36,0.1]
[1729456868950,0.1,162.47,162.29,0.1]
[1729456869270,6.1558,162.45,162.25,7.24052]
[1729456869573,6.1571,162.42,162.28,0.1]
[1729456869759,6.1572,162.42,162.23,18.7]
[1729456870076,23.776884,162.38,162.24,0.1]
[1729456870276,23.776884,162.38,162.12,0.1]
[1729456870277,20.0,162.33,162.12,0.1]
[1729456870446,20.0,162.31,162.15,0.1]
[1729456870785,6.419,162.36,162.12,15.4818]
[1729456870786,23.776884,162.26,162.12,15.4818]
[1729456871070,23.776884,162.28,162.08,0.1]
[1729456871071,23.776884,162.24,162.08,0.1]
[1729456871259,20.0,162.23,162.11,0.1]
[1729456871466,43.776884,162.27,162.14,0.1]
[1729456871661,6.1635,162.25,162.12,0.1]
[1729456871863,0.1,162.26,162.08,0.1]
[1729456872163,20.0,162.23,162.12,0.1]
[1729456872368,20.0,162.27,162.14,0.1]
[1729456872853,23.776884,162.26,162.13,0.1]
[1729456873059,20.0,162.23,162.13,0.1]
[1729456873370,20.0,162.23,162.12,0.1]
[1729456873666,26.1644,162.23,162.11,0.1]
[1729456873882,23.776884,162.22,162.11,0.1]
[1729456874044,23.776884,162.22,162.1,0.1]
[1729456874045,20.0,162.21,162.1,0.1]
[1729456874245,23.776884,162.22,162.03,13.86490611]
[1729456874246,29.941584,162.22,162.05,0.1]
[1729456874468,20.0,162.19,162.07,0.1]
[1729456874668,23.776884,162.23,162.1,0.1]
[1729456874972,6.1646,162.22,162.1,0.1]
[1729456875272,23.776884,162.2,162.08,0.1]
[1729456875455,23.776884,162.2,162.09,0.1]
[1729456875657,23.776884,162.2,162.06,0.1]
[1729456875867,23.776884,162.2,162.07,0.1]
[1729456875868,20.0,162.19,162.07,0.1]
[1729456876352,6.167,162.16,162.02,0.5001066]
[1729456876550,6.1675,162.14,162.02,0.6001066]
[1729456876747,6.419,162.17,162.09,0.1]
[1729456877169,6.419,162.27,162.17,0.1]
[1729456877383,6.1633,162.25,162.13,0.1]
[1729456877571,6.2633,162.25,162.13,0.1]
[1729456877747,6.2633,162.25,162.12,0.1]
[1729456878079,6.1639,162.24,162.12,0.1]
[1729456878274,6.1639,162.24,162.11,0.1]
[1729456878460,23.776884,162.23,162.06,2.066472]
[1729456879863,20.0,162.22,162.06,2.066472]
[1729456880182,23.776884,162.23,162.06,2.066472]
[1729456880365,20.0,162.22,162.06,2.066472]
[1729456880674,6.1648,162.21,162.02,0.5001066]
[1729456880877,23.776884,162.2,162.02,0.5001066]
[1729456881374,0.1,162.25,162.03,6.67441418]
[1729456881577,6.1638,162.24,162.04,18.6]
[1729456881753,23.776884,162.23,162.04,18.6]
[1729456882072,6.1631,162.26,162.06,18.7]
[1729456882263,6.1631,162.26,162.06,18.6]
[1729456882652,6.1631,162.26,162.02,0.5001066]
[1729456882653,6.419,162.27,162.1,0.1]
[1729456882853,6.419,162.27,162.14,0.1]
[1729456883364,6.419,162.27,162.13,0.1]
[1729456883555,6.419,162.27,162.12,24.913]
[1729456883859,12.5782,162.36,162.17,0.1]
[1729456884173,12.5782,162.36,162.16,0.1]
[1729456884362,12.5782,162.36,162.14,55.92]
[1729456884562,12.5782,162.36,162.14,62.69441418]
[1729456884766,6.16,162.34,162.14,25.37441418]
[1729456884969,6.1612,162.31,162.13,18.6]
[1729456885353,23.876884,162.3,162.13,6.419]
[1729456885572,6.1632,162.26,162.03,0.1]
[1729456885779,23.776884,162.25,162.09,6.674415]
[1729456886273,20.1,162.24,162.09,6.674415]
[1729456886477,20.1,162.24,162.03,12.88741418]
[1729456886478,6.1645,162.22,162.03,6.67441418]
[1729456886779,6.1645,162.22,162.03,20.53846418]
[1729456886980,29.941884,162.21,162.04,18.6]
[1729456887482,6.3748,162.18,162.02,0.5001066]
[1729456887684,29.943484,162.17,162.02,0.5001066]
[1729456887978,6.1671,162.15,162.02,0.5001066]
[1729456888273,6.1683,162.12,162.02,0.5001066]
[1729456888979,0.1,162.13,162.02,0.5001066]
[1729456889163,0.1,162.08,161.92,6.44000795]
[1729456889370,23.776884,162.06,161.87,6.67441418]
[1729456889675,23.776884,162.06,161.89,6.44224471]
[1729456889866,6.171,162.05,161.89,6.44224471]
[1729456890055,15.5206,162.12,161.81,5.8069858]
[1729456890056,23.776884,162.02,161.81,5.8069858]
[1729456890375,6.3748,162.0,161.82,20.3272355]
[1729456890583,6.3748,162.0,161.83,13.88204126]
[1729456890782,6.3748,162.0,161.82,6.44433637]
[1729456891080,6.3748,162.0,161.84,18.6]
[1729456891598,6.1741,161.97,161.84,6.3748]
[1729456891771,23.776884,161.96,161.78,7.74569041]
[1729456891975,23.776884,161.96,161.8,6.44621155]
[1729456892384,6.1751,161.94,161.78,1.07127623]
[1729456892866,23.776884,161.97,161.78,7.74569041]
[1729456893067,23.776884,161.97,161.78,26.34569041]
[1729456893267,23.876884,161.97,161.78,7.74569041]
[1729456893660,6.3748,162.0,161.78,7.74569041]
[1729456893860,6.3748,162.0,161.79,6.77441418]
[1729456894169,23.776884,161.99,161.79,6.67441418]
[1729456894482,6.4748,162.0,161.78,1.07127623]
[1729456894483,0.1,161.96,161.78,1.07127623]
[1729456894690,23.776884,161.94,161.78,1.07127623]
[1729456894867,23.776884,161.93,161.78,1.07127623]
[1729456895061,6.4748,162.0,161.78,1.07127623]
[1729456895263,23.776884,161.99,161.8,18.6]
[1729456895579,23.776884,161.99,161.78,1.07127623]
[1729456895580,6.274,161.97,161.78,1.07127623]
[1729456895892,23.776884,161.99,161.79,6.67441418]
[1729456896062,23.776884,161.99,161.8,18.6]
[1729456897484,29.950184,161.99,161.8,18.6]
[1729456899399,29.950184,161.99,161.79,6.67441418]
[1729456899400,0.1,161.97,161.76,7.43897189]
[1729456899690,0.1,161.97,161.79,1.07301856]
[1729456899691,23.776884,161.95,161.79,1.07301856]
[1729456899885,23.776884,161.97,161.77,6.67441418]
[1729456900076,6.1744,161.96,161.79,1.0730053]
[1729456900385,23.776884,161.93,161.79,1.0730053]
[1729456900585,0.1,161.92,161.79,1.0730053]
[1729456900785,29.954484,161.88,161.79,1.0730053]
[1729456900991,23.776884,161.88,161.76,0.9920758]
[1729456901194,12.2839,161.84,161.76,0.9920758]
[1729456901497,6.105,161.84,161.76,1.05548002]
[1729456901868,6.105,161.84,161.76,0.9920758]
[1729456902613,6.105,161.84,161.77,0.06340422]
[1729456902818,15.4047,161.89,161.8,0.06340422]
[1729456903281,15.4047,161.89,161.76,0.9920758]
[1729456903282,15.4047,161.89,161.84,0.06340422]
[1729456903703,6.105,161.92,161.84,0.06340422]
[1729456903916,6.105,161.92,161.81,0.06340422]
[1729456904117,6.04159578,161.92,161.81,0.06340422]
[1729456904290,6.04159578,161.92,161.83,0.06340422]
[1729456904488,6.04159578,161.92,161.76,0.9920758]
[1729456904489,6.04159578,161.92,161.82,0.06340422]
[1729456904892,6.04159578,161.92,161.81,0.06340422]
[1729456905586,6.04159578,161.92,161.8,0.06340422]
[1729456905780,6.04159578,161.92,161.81,0.06340422]
[1729456905984,6.04159578,161.92,161.84,0.06340422]
[1729456906422,6.04159578,161.92,161.86,0.06340422]
[1729456906798,15.4047,161.98,161.89,0.06340422]
[1729456907000,15.4047,161.98,161.91,0.06340422]
[1729456907414,15.4047,161.98,161.91,1.29779114]
[1729456907596,15.34131685,161.98,161.91,1.29779114]
[1729456908096,6.2332,162.04,161.91,1.23438692]
[1729456908298,6.2332,162.04,161.91,0.06340422]
[1729456909502,12.4045,162.04,161.9,0.06340422]
[1729456909911,12.4045,162.04,161.89,0.06340422]
[1729456910114,12.4045,162.04,161.88,0.06340422]
[1729456910115,23.776884,162.03,161.88,0.06340422]
[1729456910424,29.948484,162.03,161.88,0.06340422]
[1729456910591,15.0063,162.02,161.89,0.06340422]
[1729456911014,14.94289578,162.02,161.89,0.06340422]
[1729456911500,14.94289578,162.02,161.9,0.06340422]
[1729456911998,14.94289578,162.02,161.93,0.06340422]
[1729456913623,14.94289578,162.02,161.91,0.06340422]
[1729456914305,14.87949156,162.02,161.91,0.06340422]
[1729456916826,14.87949156,162.02,161.9,0.06340422]
[1729456917132,14.87949156,162.02,161.91,0.06340422]
[1729456918703,14.87949156,162.02,161.96,0.06340422]
[1729456918904,6.2332,162.04,161.96,0.06340422]
[1729456919123,6.2332,162.04,161.96,1.29735844]
[1729456919620,6.2332,162.04,161.97,0.06340422]
[1729456919829,6.2332,162.04,161.98,1.23391281]
[1729456920137,15.0063,162.1,162.0,0.06340422]
[1729456920347,15.0063,162.1,162.0,1.29708934]
[1729456920704,15.0063,162.1,162.01,0.06340422]
[1729456920903,15.0063,162.1,162.02,1.29703831]
[1729456921103,15.0063,162.1,162.03,0.06340422]
[1729456921306,15.0063,162.1,162.04,1.23348734]
[1729456921514,6.2332,162.11,162.04,1.29689156]
[1729456921715,21.2395,162.18,162.06,0.06340422]
[1729456921932,21.2395,162.18,162.06,1.2966246]
[1729456922706,21.2395,162.18,162.08,0.06340422]
[1729456922909,21.2395,162.18,162.09,0.06340422]
[1729456923111,21.2395,162.18,162.1,1.23303568]
[1729456923609,15.0063,162.18,162.12,0.06340422]
[1729456923826,6.43500904,162.27,162.12,0.06340422]
[1729456923827,6.2332,162.25,162.12,1.29616046]
[1729456924008,6.2332,162.25,162.13,0.06340422]
[1729456924339,6.2332,162.25,162.09,1.29615037]
[1729456924518,6.1637,162.24,162.09,1.29615037]
[1729456924860,6.2332,162.25,162.1,0.06340422]
[1729456925016,6.2332,162.25,162.12,0.06340422]
[1729456925339,6.2332,162.25,162.13,1.23282873]
[1729456926138,6.1642,162.23,162.07,0.06340422]
[1729456926437,6.1642,162.23,162.08,0.06340422]
[1729456926438,23.776884,162.22,162.08,0.06340422]
[1729456926919,23.776884,162.24,162.09,0.06340422]
[1729456927927,23.776884,162.24,162.07,0.06340422]
[1729456928239,23.776884,162.22,162.07,0.06340422]
[1729456928552,29.941484,162.22,162.06,0.06340422]
[1729456928913,29.941484,162.22,162.06,0.20264762]
[1729456929316,23.776884,162.2,162.06,0.1392434]
[1729456929512,23.776884,162.18,162.06,0.1392434]
[1729456929928,29.942884,162.18,162.06,0.1392434]
[1729456930233,23.776884,162.18,162.06,0.1392434]
[1729456930439,23.776884,162.2,162.06,0.1121934]
[1729456932223,23.776884,162.2,162.06,0.0820434]
[1729456932437,23.776884,162.2,162.07,0.06340422]
[1729456932629,6.1644,162.23,162.06,1.31536299]
[1729456932630,6.1641,162.23,162.08,1.29654884]
[1729456933336,6.1637,162.24,162.09,0.06340422]
[1729456933565,6.1637,162.24,162.1,1.23300041]
[1729456934653,6.1641,162.23,162.09,0.06340422]
[1729456935250,6.1641,162.23,162.08,0.06340422]
[1729456935741,6.1645,162.22,162.08,1.23308347]
[1729456935939,6.1645,162.22,162.08,1.29648769]
[1729456936527,6.1645,162.22,162.08,1.23308347]
[1729456936745,30.21187845,162.24,162.06,0.0820434]
[1729456936930,23.776884,162.19,162.06,0.0820434]
[1729456937137,29.942484,162.19,162.06,0.0820434]
[1729456937329,29.942484,162.19,162.06,1.31540223]
[1729456937937,23.776884,162.19,162.06,1.31540223]
[1729456938136,21.84479445,162.24,162.06,1.37880645]
[1729456938343,23.776884,162.23,162.07,0.06340422]
[1729456938555,23.776884,162.23,162.08,1.23317687]
[1729456938766,23.776884,162.21,162.08,1.23317687]
[1729456939662,6.43499445,162.24,162.12,0.06340422]
[1729456939862,6.2332,162.25,162.12,0.06340422]
[1729456940056,6.2332,162.25,162.13,0.06340422]
[1729456940260,6.2332,162.25,162.14,1.29611348]
[1729456940866,6.2332,162.25,162.14,1.23270926]
[1729456941242,6.2332,162.25,162.14,0.06340422]
[1729456942740,6.2332,162.25,162.15,0.06340422]
[1729456943147,6.2332,162.25,162.16,0.06340422]
[1729456943356,6.2332,162.25,162.17,0.06340422]
[1729456943858,6.2332,162.25,162.14,1.23244659]
[1729456943859,15.0063,162.26,162.19,0.06340422]
[1729456944643,15.0063,162.26,162.19,1.29570567]
[1729456946770,15.0063,162.26,162.17,0.06340422]
[1729456947065,21.1696,162.26,162.14,0.06340422]
[1729456947239,15.0063,162.26,162.14,0.06340422]
[1729456948344,21.1693,162.26,162.12,0.06340422]
[1729456948766,15.0063,162.26,162.12,0.06340422]
[1729456949960,15.0063,162.26,162.14,0.06340422]
[1729456951580,15.0063,162.26,162.17,0.06340422]
[1729456951746,15.0063,162.26,162.2,0.06340422]
[1729456951944,6.6514,162.32,162.2,0.06340422]
[1729456952160,6.6514,162.32,162.21,0.06340422]
[1729456954465,6.6514,162.32,162.18,1.23217253]
[1729456954466,6.6514,162.32,162.26,0.06340422]
[1729456954664,16.4496,162.33,162.26,0.06340422]
[1729456954845,16.4496,162.33,162.26,1.29518981]
[1729456955045,6.5845,162.38,162.27,0.06340422]
[1729456955245,6.5845,162.38,162.29,0.06340422]
[1729456955471,6.5845,162.38,162.3,1.29495452]
[1729456955677,6.5845,162.38,162.27,0.06340422]
[1729456955972,6.5845,162.38,162.28,20.06340422]
[1729456956271,6.5845,162.38,162.26,21.23173745]
[1729456956272,6.5845,162.38,162.29,1.29504791]
[1729456956569,6.5845,162.38,162.29,0.06340422]
[1729456957162,6.5845,162.38,162.24,5.8069858]
[1729456957163,6.5845,162.38,162.24,5.87039002]
[1729456957368,12.7431,162.38,162.23,0.06340422]
[1729456958165,6.1594,162.36,162.21,0.06340422]
[1729456961279,23.776884,162.33,162.16,0.06340422]
[1729456961460,6.1618,162.3,162.14,0.06340422]
[1729456961657,6.5845,162.29,162.15,0.06340422]
[1729456961860,6.5845,162.29,162.2,0.06340422]
[1729456962053,6.5845,162.29,162.21,0.06340422]
[1729456962279,16.4496,162.32,162.24,0.06340422]
[1729456962654,16.4496,162.32,162.23,0.06340422]
[1729456962855,16.4496,162.32,162.24,0.06340422]
[1729456963961,16.4496,162.32,162.23,0.06340422]
[1729456964173,16.4496,162.32,162.2,0.06340422]
[1729456964586,16.4496,162.32,162.19,0.06340422]
[1729456964881,16.4496,162.32,162.18,20.0]
[1729456964882,16.4496,162.32,162.2,0.06340422]
[1729456965386,16.4496,162.32,162.17,20.0]
[1729456965387,16.4496,162.32,162.17,0.06340422]
[1729456965588,23.776884,162.31,162.14,0.06340422]
[1729456965884,29.938184,162.31,162.16,0.06340422]
[1729456966762,29.938184,162.31,162.15,0.06340422]
[1729456967570,6.1618,162.29,162.13,20.06340422]
[1729456967772,23.776884,162.26,162.1,12.29975501]
[1729456968088,6.3909,162.27,162.07,0.06340422]
[1729456968089,23.776884,162.24,162.07,0.06340422]
[1729456968276,6.1647,162.22,162.07,0.06340422]
[1729456968588,15.2553,162.25,162.06,0.14544762]
[1729456968589,6.1649,162.21,162.06,0.14544762]
[1729456968886,23.776884,162.21,162.06,0.0820434]
[1729456969264,43.776884,162.18,162.06,0.0820434]
[1729456969463,23.776884,162.18,162.06,0.0820434]
[1729456969669,21.6462,162.22,162.06,0.14544762]
[1729456969867,23.776884,162.21,162.07,0.06340422]
[1729456970187,29.941784,162.21,162.06,0.0820434]
[1729456971188,6.1656,162.19,162.06,0.0820434]
[1729456971689,23.776884,162.18,162.06,0.0820434]
[1729456971884,29.942884,162.18,162.06,0.0820434]
[1729456972279,21.6462,162.22,162.06,0.0820434]
[1729456972479,23.776884,162.21,162.06,0.0820434]
[1729456972686,23.776884,162.21,162.06,0.14544762]
[1729456972865,23.776884,162.21,162.06,0.0820434]
[1729456973617,29.941784,162.21,162.06,0.0820434]
[1729456975273,21.6462,162.22,162.06,0.14544762]
[1729456975481,27.8106,162.22,162.06,0.14544762]
[1729456976198,21.6462,162.22,162.08,0.06340422]
[1729456977387,21.6462,162.22,162.1,0.06340422]
[1729456978285,21.6462,162.22,162.09,2.46647]
[1729456978286,21.6462,162.22,162.11,0.06340422]
[1729456978601,21.6462,162.22,162.13,0.06340422]
[1729456978992,21.6462,162.22,162.06,44.4890292]
[1729456978993,21.6462,162.22,162.12,0.06340422]
[1729456979486,21.6462,162.22,162.13,0.06340422]
[1729456980901,21.6462,162.22,162.12,2.46647]
[1729456981096,21.6462,162.22,162.06,5.95243342]
[1729456981303,21.6462,162.22,162.07,21.25340422]
[1729456981495,21.6462,162.22,162.06,0.0820434]
[1729456981694,27.8107,162.22,162.06,0.14544762]
[1729456982315,21.6462,162.22,162.06,0.14544762]
[1729456983512,21.6462,162.22,162.07,20.0]
[1729456983704,21.6462,162.22,162.06,0.14544762]
[1729456984301,21.6462,162.22,162.07,0.06340422]
[1729456988014,21.6462,162.22,162.09,0.06340422]
[1729456988210,21.6462,162.22,162.1,0.06340422]
[1729456988993,21.6462,162.22,162.12,0.06340422]
[1729456990498,21.6462,162.22,162.14,0.06340422]
[1729456990726,21.6462,162.22,162.15,0.06340422]
[1729456990894,15.2553,162.22,162.15,0.06340422]
[1729456991089,6.3958,162.27,162.16,0.06340422]
[1729456993801,6.43129456,162.31,162.16,0.06340422]
[1729456993802,6.43129456,162.31,162.21,0.06340422]
[1729456994003,21.4763,162.33,162.21,0.06340422]
[1729456994200,21.4763,162.33,162.22,0.06340422]
[1729456995915,21.4763,162.33,162.2,0.06340422]
[1729456996146,21.4763,162.33,162.18,0.06340422]
[1729456996304,21.4763,162.33,162.17,0.06340422]
[1729456996624,23.776884,162.32,162.16,0.06340422]
[1729456998013,21.4763,162.33,162.18,0.06340422]
[1729456999020,21.4763,162.33,162.2,0.06340422]
[1729456999541,21.4763,162.33,162.21,0.06340422]
[1729457001337,21.4763,162.33,162.22,0.06340422]
[1729457001704,21.4763,162.33,162.18,0.06340422]
[1729457001903,23.776884,162.32,162.15,0.06340422]
[1729457002302,6.1622,162.28,162.12,0.06340422]
[1729457002510,6.1626,162.27,162.12,0.06340422]
[1729457002730,29.939484,162.27,162.1,6.49188461]
[1729457002934,29.939484,162.27,162.11,0.06340422]
[1729457003148,15.0805,162.26,162.1,0.06340422]
[1729457003443,23.776884,162.25,162.09,1.07120209]
[1729457003618,6.1643,162.23,162.09,1.07120209]
[1729457003817,6.1646,162.22,162.09,1.07120209]
[1729457004017,6.3958,162.21,162.09,1.07120209]
[1729457004310,23.776884,162.2,162.09,1.07120209]
[1729457004508,23.776884,162.18,162.06,0.0820434]
[1729457004727,6.1668,162.16,162.06,0.0820434]
[1729457004922,29.943184,162.18,162.06,0.0820434]
[1729457005949,36.37817656,162.18,162.06,0.0820434]
[1729457006307,6.1664,162.17,162.06,0.0820434]
[1729457006833,6.4233,162.14,162.06,0.0820434]
[1729457007344,29.944984,162.13,162.06,0.0820434]
[1729457009841,6.4233,162.14,162.06,0.0820434]
[1729457010939,12.5909,162.14,162.06,0.0820434]
[1729457011237,6.4233,162.14,162.06,0.0820434]
[1729457012432,6.4233,162.14,162.06,0.14544762]
[1729457015657,6.4233,162.14,162.06,0.0820434]
[1729457024162,23.776884,162.13,162.06,0.0820434]
[1729457024565,6.4233,162.14,162.06,0.0820434]
[1729457026044,23.776884,162.13,162.06,0.0820434]
[1729457026552,29.944784,162.13,162.06,0.0820434]
[1729457027947,23.776884,162.11,162.06,0.0820434]
[1729457028146,6.1693,162.1,162.06,0.0820434]
[1729457032485,16.0403,162.12,162.06,0.0820434]
[1729457035470,6.1692,162.1,162.06,0.0820434]
[1729457036386,23.776884,162.09,162.06,0.0820434]
[1729457039887,16.0403,162.12,162.06,0.0820434]
[1729457039888,23.776884,162.11,162.06,0.0820434]
[1729457042564,16.0403,162.12,162.06,0.0820434]
[1729457045879,23.776884,162.11,162.06,0.0820434]
[1729457046079,6.1691,162.1,162.06,0.0820434]
[1729457046271,23.776884,162.09,162.06,0.0820434]
[1729457046676,23.776884,162.09,161.79,0.71090422]
[1729457046677,18.6,162.07,161.79,0.71090422]
[1729457046878,23.776884,162.09,161.9,0.6211676]
[1729457046879,43.776884,162.02,161.9,0.6211676]
[1729457047068,23.776884,161.98,161.9,0.6211676]
[1729457047283,23.776884,161.96,161.9,0.6211676]
[1729457047468,20.0,162.02,161.9,0.6211676]
[1729457047788,23.776884,161.99,161.9,0.6211676]
[1729457048594,23.776884,161.97,161.9,0.6211676]
[1729457053884,29.950884,161.97,161.9,0.6211676]
[1729457054593,20.0,161.96,161.9,0.6211676]
[1729457054811,12.2607,161.94,161.9,0.6211676]
[1729457054990,23.776884,161.93,161.9,0.6211676]
[1729457056089,39.095584,161.93,161.9,0.6211676]
[1729457056597,49.953084,161.91,161.9,0.6211676]
[1729457059785,43.776884,161.91,161.9,0.6211676]
[1729457060286,15.3187,161.93,161.9,0.6211676]
[1729457062888,6.44452577,161.97,161.9,0.6211676]
[1729457063108,21.4043,161.99,161.9,0.6211676]
[1729457064190,23.776884,161.98,161.9,0.6211676]
[1729457066321,6.1739,161.97,161.9,0.6211676]
[1729457066612,23.776884,161.95,161.9,0.6211676]
[1729457068836,20.0,161.98,161.9,0.6211676]
[1729457070433,23.776884,161.97,161.9,0.6211676]
[1729457071723,23.776884,161.98,161.9,0.6211676]
[1729457074703,21.4043,161.99,161.9,0.6211676]
[1729457075720,6.44677578,162.04,161.92,0.06340422]
[1729457075721,27.67367578,162.04,161.92,0.06340422]
[1729457076301,21.2269,162.04,161.94,0.06340422]
[1729457076503,21.2269,162.04,161.92,0.06340422]
[1729457076813,21.2269,162.04,161.9,0.6211676]
[1729457076814,21.2269,162.04,161.91,0.06340422]
[1729457078029,21.2269,162.04,161.92,0.06340422]
[1729457078326,21.2269,162.04,161.9,0.6211676]
[1729457078327,21.2269,162.04,161.93,0.06340422]
[1729457083246,21.2269,162.04,161.94,0.06340422]
[1729457084328,15.4191,162.14,161.95,0.06340422]
[1729457084537,23.776884,162.09,161.96,0.06340422]
[1729457084829,6.1691,162.1,161.96,0.06340422]
[1729457085202,6.44391625,162.11,161.96,0.06340422]
[1729457085432,12.61261625,162.11,161.96,0.06340422]